bitfinex/quotes_SOLUSD_20251224
["timestamp","ask_amount","ask_price","bid_price","bid_amount"]
[1766585222700,11.12767296,122.31,122.28,2.54027282]
[1766585222701,10.43767296,122.31,122.28,2.54027282]
[1766585222906,11.12767296,122.31,122.28,2.54027282]
[1766585223082,14.94,122.3,122.26,0.72]
[1766585223284,10.43767296,122.27,122.23,19.40054564]
[1766585223582,0.69,122.26,122.23,2.54027282]
[1766585223797,14.94,122.27,122.24,0.72]
[1766585224291,14.94,122.27,122.25,2.54027282]
[1766585224490,14.94,122.27,122.25,1.82027282]
[1766585225298,14.94,122.27,122.24,2.54027282]
[1766585227184,14.94,122.27,122.24,10.7205139]
[1766585228709,15.63,122.27,122.24,2.54027282]
[1766585232814,15.63,122.27,122.24,0.72]
[1766585233015,15.63,122.27,122.24,2.54027282]
[1766585235419,14.94,122.27,122.25,0.66]
[1766585236714,15.63,122.27,122.24,2.48027282]
[1766585236887,0.69,122.26,122.21,1.82027282]
[1766585237093,0.69,122.24,122.21,10.66252975]
[1766585238508,14.94,122.25,122.22,0.66]
[1766585241719,0.69,122.24,122.22,10.00217395]
[1766585241925,14.94,122.25,122.23,1.82027282]
[1766585242307,10.43767296,122.26,122.24,2.48027282]
[1766585243021,11.12767296,122.26,122.24,1.82027282]
[1766585247034,10.43767296,122.26,122.24,1.82027282]
[1766585247226,10.43767296,122.26,122.24,2.48027282]
[1766585247727,11.12767296,122.26,122.24,1.82027282]
[1766585248327,10.43767296,122.26,122.24,1.82027282]
[1766585248527,11.12767296,122.26,122.23,10.66155934]
[1766585248712,11.12767296,122.26,122.23,0.66]
[1766585248915,0.69,122.25,122.22,8.84186538]
[1766585249331,12.94794578,122.26,122.23,0.66]
[1766585249522,12.25794578,122.26,122.23,0.66]
[1766585249922,0.69,122.25,122.22,8.84186538]
[1766585250125,10.43767296,122.26,122.23,0.66]
[1766585250320,11.12767296,122.26,122.23,0.66]
[1766585250519,10.43767296,122.26,122.22,10.0021382]
[1766585250836,0.69,122.25,122.22,10.6621382]
[1766585251136,1.82027282,122.25,122.21,16.76027282]
[1766585251349,1.82027282,122.25,122.22,0.66]
[1766585251532,2.51027282,122.25,122.22,0.66]
[1766585251916,0.69,122.25,122.22,0.66]
[1766585252110,0.69,122.25,122.21,23.78257863]
[1766585252313,10.43767296,122.26,122.23,0.66]
[1766585252529,11.12767296,122.26,122.23,0.66]
[1766585252724,10.43767296,122.26,122.23,0.66]
[1766585253033,10.43767296,122.26,122.22,10.0022173]
[1766585253034,11.12767296,122.26,122.22,10.0022173]
[1766585253243,11.12767296,122.26,122.22,10.6622173]
[1766585253429,11.12767296,122.26,122.22,10.0022173]
[1766585253635,11.12767296,122.26,122.22,10.6622173]
[1766585253830,11.12767296,122.26,122.23,0.66]
[1766585254618,10.43767296,122.26,122.23,0.66]
[1766585254826,11.12767296,122.26,122.23,0.66]
[1766585255028,0.69,122.25,122.22,10.6622173]
[1766585255226,10.43767296,122.26,122.22,10.0022173]
[1766585255428,11.12767296,122.26,122.23,0.66]
[1766585255633,10.43767296,122.26,122.23,0.66]
[1766585255834,11.12767296,122.26,122.23,0.66]
[1766585256438,11.12767296,122.26,122.22,10.6622173]
[1766585257744,0.71,122.25,122.22,8.84194448]
[1766585257947,0.71,122.25,122.22,10.6622173]
[1766585259947,10.43767296,122.26,122.22,10.0022173]
[1766585260248,11.14767296,122.26,122.23,10.67155874]
[1766585260432,10.43767296,122.26,122.23,10.00155874]
[1766585260754,10.43767296,122.26,122.24,0.67]
[1766585263048,0.71,122.25,122.22,10.67195806]
[1766585264251,0.71,122.25,122.22,8.85168524]
[1766585264435,0.71,122.25,122.22,10.67195806]
[1766585265939,11.14767296,122.26,122.22,11.69579277]
[1766585266251,11.14767296,122.26,122.23,3.51410753]
[1766585266757,10.43767296,122.26,122.23,2.84410753]
[1766585266927,11.14767296,122.26,122.23,3.51410753]
[1766585267648,10.43767296,122.26,122.24,0.67]
[1766585268052,10.43767296,122.26,122.23,2.84410753]
[1766585268355,11.14767296,122.26,122.23,2.84410753]
[1766585268561,11.14767296,122.26,122.23,3.51410753]
[1766585268731,10.43767296,122.26,122.23,3.51410753]
[1766585268932,10.43767296,122.26,122.24,0.67]
[1766585269137,10.43767296,122.26,122.23,2.84410753]
[1766585269436,11.14767296,122.26,122.23,2.84410753]
[1766585269752,11.14767296,122.26,122.23,3.51410753]
[1766585270054,10.43767296,122.26,122.23,2.84410753]
[1766585270273,11.14767296,122.26,122.23,2.84410753]
[1766585271468,11.14767296,122.26,122.23,3.51410753]
[1766585271755,0.71,122.25,122.23,2.84410753]
[1766585272366,0.71,122.25,122.22,11.69579277]
[1766585272728,0.71,122.25,122.21,26.63644283]
[1766585272930,11.14767296,122.25,122.21,26.63644283]
[1766585273331,11.14767296,122.25,122.22,0.67]
[1766585273876,0.71,122.24,122.2,23.79298174]
[1766585274028,0.71,122.24,122.21,2.84410753]
[1766585274541,0.71,122.24,122.21,3.51410753]
[1766585274859,10.43767296,122.25,122.22,11.02602963]
[1766585275054,11.14767296,122.25,122.22,11.69602963]
[1766585281251,11.14767296,122.25,122.23,2.84410753]
[1766585281456,0.71,122.25,122.23,2.84410753]
[1766585283160,0.71,122.25,122.22,8.8519221]
[1766585283363,0.71,122.25,122.23,2.84410753]
[1766585285052,0.71,122.25,122.22,11.69602963]
[1766585286441,0.71,122.25,122.23,11.02538677]
[1766585286965,0.71,122.25,122.23,8.18127924]
[1766585287151,0.71,122.25,122.23,11.02538677]
[1766585287550,0.71,122.25,122.21,8.18235289]
[1766585287753,0.71,122.25,122.21,11.68646042]
[1766585288067,0.68,122.24,122.21,11.68646042]
[1766585288363,0.68,122.24,122.21,3.50410753]
[1766585291266,0.68,122.24,122.21,11.68646658]
[1766585291847,0.68,122.24,122.22,2.84410753]
[1766585294170,0.68,122.24,122.21,8.84235905]
[1766585294368,0.68,122.24,122.22,2.84410753]
[1766585296384,0.68,122.24,122.22,11.02580177]
[1766585297569,0.68,122.24,122.22,8.18169424]
[1766585297768,0.68,122.24,122.22,11.02580177]
[1766585301870,11.11767296,122.25,122.22,11.68580177]
[1766585302250,11.11767296,122.25,122.23,2.84410753]
[1766585302650,11.11767296,122.25,122.22,11.68580177]
[1766585304086,11.11767296,122.25,122.22,11.02580177]
[1766585304373,11.11767296,122.25,122.22,11.68580177]
[1766585306974,11.11767296,122.25,122.22,8.84169424]
[1766585307174,11.11767296,122.25,122.22,11.68580177]
[1766585309168,0.68,122.24,122.22,0.66]
[1766585309970,0.68,122.24,122.22,8.84191389]
[1766585311876,0.68,122.24,122.22,11.68602142]
[1766585314585,11.11767296,122.25,122.22,11.68602142]
[1766585317784,11.11767296,122.25,122.22,8.84191389]
[1766585318082,11.11767296,122.25,122.22,11.68602142]
[1766585318683,10.43767296,122.25,122.22,11.68602142]
[1766585318928,0.68,122.24,122.22,11.68602142]
[1766585319188,0.68,122.24,122.22,8.84191389]
[1766585322994,0.68,122.24,122.22,0.66]
[1766585323900,0.68,122.24,122.22,3.50410753]
[1766585324587,0.68,122.24,122.22,0.66]
[1766585324894,0.68,122.23,122.19,11.02773903]
[1766585325186,0.68,122.22,122.18,11.0285426]
[1766585325397,0.68,122.21,122.18,8.18443507]
[1766585327099,0.68,122.21,122.18,10.00617019]
[1766585328797,0.68,122.21,122.18,8.18443507]
[1766585329294,0.68,122.21,122.18,10.00617019]
[1766585330072,0.68,122.21,122.17,8.82505141]
[1766585330374,0.68,122.2,122.17,10.64678653]
[1766585331391,0.68,122.2,122.17,8.82505141]
[1766585331592,0.68,122.2,122.17,10.64678653]
[1766585332084,0.68,122.2,122.18,1.82173512]
[1766585335302,0.68,122.2,122.17,10.64678653]
[1766585335507,0.68,122.2,122.17,10.00678653]
[1766585335802,0.68,122.2,122.17,10.64678653]
[1766585336204,0.68,122.2,122.18,1.82173512]
[1766585337204,0.68,122.2,122.18,10.00636989]
[1766585338206,0.68,122.2,122.18,8.18463477]
[1766585338407,0.68,122.2,122.18,10.00636989]
[1766585340010,0.68,122.2,122.18,1.82173512]
[1766585344010,0.68,122.2,122.18,10.00605736]
[1766585344517,0.68,122.23,122.19,2.46173512]
[1766585344696,0.68,122.22,122.19,2.46173512]
[1766585345299,0.68,122.22,122.19,1.82173512]
[1766585347409,0.68,122.22,122.18,10.64605736]
[1766585347612,0.68,122.22,122.18,10.00605736]
[1766585348003,0.68,122.22,122.18,10.64605736]
[1766585350816,0.66,122.21,122.16,31.1121467]
[1766585351012,0.66,122.21,122.17,2.46173512]
[1766585352719,0.66,122.21,122.17,10.64655994]
[1766585356224,0.66,122.21,122.17,8.82482482]
[1766585356522,0.66,122.21,122.17,10.64655994]
[1766585357323,0.66,122.21,122.17,8.82482482]
[1766585357521,1.82173512,122.2,122.16,8.82566769]
[1766585357706,0.66,122.19,122.16,8.18566769]
[1766585358120,0.66,122.18,122.15,10.64823588]
[1766585358414,0.66,122.18,122.15,0.64]
[1766585358621,0.66,122.18,122.15,10.64823193]
[1766585359724,0.66,122.18,122.16,2.46173512]
[1766585360229,0.66,122.18,122.16,1.82173512]
[1766585361119,10.43767296,122.19,122.16,2.46173512]
[1766585361322,11.09767296,122.19,122.16,2.46173512]
[1766585361635,10.43767296,122.2,122.18,2.46173512]
[1766585362328,0.66,122.21,122.18,1.82173512]
[1766585363939,0.66,122.21,122.17,10.6465653]
[1766585365807,26.03767296,122.22,122.19,2.46173512]
[1766585366421,0.66,122.21,122.19,1.82173512]
[1766585367424,0.66,122.21,122.18,10.64583595]
[1766585368409,0.66,122.21,122.18,8.82410083]
[1766585373922,0.66,122.21,122.18,10.64583595]
[1766585374947,0.66,122.21,122.18,8.82410083]
[1766585375420,0.66,122.21,122.18,2.46173512]
[1766585376933,0.66,122.21,122.18,0.64]
[1766585381481,0.66,122.21,122.17,10.00677203]
[1766585381632,0.66,122.21,122.17,10.64677203]
[1766585383561,10.43767296,122.19,122.17,0.64]
[1766585383763,11.10767296,122.19,122.17,0.64]
[1766585384068,11.10767296,122.19,122.16,10.64754437]
[1766585384452,11.10767296,122.19,122.16,8.82580925]
[1766585385735,11.10767296,122.19,122.16,10.64754437]
[1766585388040,11.10767296,122.19,122.16,11.67294284]
[1766585390372,11.10767296,122.19,122.17,2.84713359]
[1766585392164,11.10767296,122.19,122.16,11.67294284]
[1766585408882,0.68,122.21,122.17,2.84713359]
[1766585409067,0.68,122.2,122.17,3.48713359]
[1766585409761,11.11767296,122.2,122.18,3.48713359]
[1766585409962,10.43767296,122.2,122.18,3.48713359]
[1766585410478,11.11767296,122.2,122.18,3.48713359]
[1766585413085,11.11767296,122.2,122.18,8.82460557]
[1766585413260,11.11767296,122.2,122.18,11.67173916]
[1766585414896,14.94,122.21,122.19,3.48713359]
[1766585415396,15.62,122.21,122.19,3.48713359]
[1766585416183,0.68,122.22,122.19,3.48713359]
[1766585416976,0.68,122.22,122.2,3.48713359]
[1766585417162,26.05767296,122.23,122.2,3.48713359]
[1766585419382,26.05767296,122.23,122.21,2.84713359]
[1766585420988,26.05767296,122.23,122.2,8.82314632]
[1766585421286,26.05767296,122.23,122.21,2.84713359]
[1766585423277,15.62,122.23,122.21,2.84713359]
[1766585424867,15.62,122.23,122.2,8.82314632]
[1766585425069,15.62,122.23,122.21,2.84713359]
[1766585431187,15.62,122.23,122.21,11.02964582]
[1766585434908,15.62,122.23,122.21,8.18251223]
[1766585435083,15.62,122.23,122.21,11.02964582]
[1766585436591,15.62,122.23,122.21,11.66964582]
[1766585436999,24.56499488,122.28,122.23,0.72]
[1766585437184,2.84713359,122.27,122.23,0.72]
[1766585437382,14.94,122.28,122.23,0.72]
[1766585437594,13.28480655,122.27,122.23,0.72]
[1766585437898,10.43767296,122.27,122.23,3.56713359]
[1766585438478,10.43767296,122.27,122.24,8.86035959]
[1766585438686,10.43767296,122.27,122.25,0.68]
[1766585438984,11.09767296,122.27,122.25,0.68]
[1766585440308,11.09767296,122.27,122.25,8.85990853]
[1766585440705,14.94,122.28,122.26,0.68]
[1766585442192,0.66,122.29,122.26,0.68]
[1766585442508,0.66,122.29,122.26,8.85904113]
[1766585443104,0.66,122.29,122.26,11.70617472]
[1766585444119,15.6,122.3,122.27,0.68]
[1766585445119,0.76,122.32,122.29,0.68]
[1766585445418,15.7,122.32,122.29,0.68]
[1766585445805,0.66,122.31,122.29,0.68]
[1766585446009,0.66,122.31,122.29,11.70423418]
[1766585446226,15.7,122.32,122.29,11.70423418]
[1766585446392,15.04,122.32,122.3,0.68]
[1766585446588,15.04,122.32,122.29,11.02423418]
[1766585446791,15.04,122.32,122.29,8.85710059]
[1766585446792,15.7,122.32,122.29,8.85710059]
[1766585448120,0.1,122.32,122.3,0.68]
[1766585449217,0.1,122.32,122.3,3.52713359]
[1766585449395,0.1,122.32,122.31,0.68]
[1766585449993,0.1,122.32,122.29,40.97584641]
[1766585450232,0.1,122.32,122.3,0.68]
[1766585450451,2.5778641,122.32,122.29,8.85710059]
[1766585450658,0.76,122.32,122.29,8.85710059]
[1766585451636,0.66,122.3,122.28,8.17764932]
[1766585451840,2.4778641,122.3,122.27,8.85837969]
[1766585452661,0.66,122.3,122.27,8.85837969]
[1766585458343,0.66,122.3,122.27,8.17837969]
[1766585459058,0.66,122.3,122.27,8.85837969]
[1766585460143,10.43767296,122.28,122.25,11.45320408]
[1766585460345,10.43767296,122.28,122.25,8.85974772]
[1766585460346,0.66,122.27,122.25,8.85974772]
[1766585461042,15.6,122.28,122.25,8.85974772]
[1766585461251,14.94,122.28,122.26,8.85927677]
[1766585461437,15.6,122.28,122.25,8.85966456]
[1766585461857,0.66,122.3,122.27,10.67648518]
[1766585462441,0.66,122.3,122.28,0.68]
[1766585462642,26.03767296,122.31,122.28,0.68]
[1766585462967,0.66,122.3,122.27,10.67648518]
[1766585463464,0.66,122.3,122.27,8.85862108]
[1766585464446,25.37767296,122.31,122.27,30.44303789]
[1766585464757,15.7,122.32,122.29,2.4978641]
[1766585466165,15.7,122.32,122.29,0.68]
[1766585466863,15.7,122.32,122.29,8.85694686]
[1766585473862,15.7,122.32,122.3,0.65]
[1766585474263,15.04,122.32,122.3,0.65]
[1766585476058,15.74,122.32,122.3,0.65]
[1766585476374,15.74,122.32,122.29,0.65]
[1766585479774,0.1,122.32,122.31,0.65]
[1766585487563,0.1,122.32,122.29,0.65]
[1766585487880,0.8,122.32,122.29,0.65]
[1766585488582,0.7,122.29,122.27,3.27292067]
[1766585488760,2.5178641,122.29,122.25,0.65]
[1766585489090,12.95553706,122.31,122.27,0.65]
[1766585489282,27.87553706,122.31,122.27,0.65]
[1766585489481,0.7,122.3,122.27,0.65]
[1766585491480,0.7,122.29,122.25,1.8178641]
[1766585491682,2.5178641,122.28,122.24,0.65]
[1766585491880,0.7,122.27,122.24,0.65]
[1766585493572,2.5178641,122.28,122.25,0.65]
[1766585494884,0.7,122.28,122.25,0.65]
[1766585496395,12.25553706,122.31,122.27,0.65]
[1766585496565,0.7,122.3,122.27,0.65]
[1766585499140,10.43767296,122.31,122.29,0.68]
[1766585499404,118.3,122.32,122.29,0.68]
[1766585499600,15.7,122.32,122.3,0.68]
[1766585500190,15.04,122.32,122.3,0.68]
[1766585502297,15.04,122.32,122.3,8.85599086]
[1766585502908,15.04,122.32,122.31,0.68]
[1766585503083,0.1,122.32,122.31,0.68]
[1766585503278,0.1,122.32,122.3,8.85599086]
[1766585506802,0.1,122.33,122.3,30.43539216]
[1766585506986,0.1,122.33,122.31,0.72]
[1766585507586,1e-08,122.33,122.31,0.72]
[1766585508203,1e-08,122.33,122.32,8.17527795]
[1766585509811,0.68000001,122.33,122.3,29.33815208]
[1766585509989,0.68,122.32,122.3,8.17661488]
[1766585512492,2.84105833,122.33,122.3,8.89661488]
[1766585512694,1e-08,122.33,122.3,8.89661488]
[1766585513612,1e-08,122.33,122.3,29.33815208]
[1766585514505,0.68000001,122.33,122.3,29.33815208]
[1766585517193,0.68000001,122.33,122.3,32.1792104]
[1766585517517,1e-08,122.33,122.31,0.72]
[1766585519317,1e-08,122.33,122.32,8.17527795]
[1766585520616,1e-08,122.33,122.31,8.89594636]
[1766585522317,0.68000001,122.33,122.31,8.89594636]
[1766585523525,0.68000001,122.33,122.31,8.17594636]
[1766585527329,0.68000001,122.33,122.3,29.28815208]
[1766585528525,0.68000001,122.33,122.3,8.84661488]
[1766585533030,3.52105833,122.33,122.3,8.84661488]
[1766585534028,0.67,122.32,122.29,8.17698258]
[1766585534229,2.84105832,122.31,122.29,8.17698258]
[1766585534547,0.67,122.3,122.28,8.17765985]
[1766585535548,0.67,122.3,122.27,8.84846123]
[1766585535711,3.51105832,122.3,122.27,8.84846123]
[1766585536034,0.67,122.29,122.27,8.84846123]
[1766585536536,0.67,122.29,122.26,8.17903486]
[1766585536537,0.67,122.28,122.26,8.17903486]
[1766585536750,3.51105832,122.27,122.25,8.17975705]
[1766585536950,0.67,122.26,122.24,8.18031333]
[1766585537657,3.51105832,122.26,122.24,8.18031333]
[1766585538342,3.51105832,122.26,122.23,8.85101878]
[1766585543140,0.67,122.26,122.24,0.67]
[1766585543639,0.67,122.26,122.23,8.18101878]
[1766585543844,0.67,122.26,122.23,8.85101878]
[1766585546848,3.51105832,122.26,122.23,8.85101878]
[1766585547547,0.67,122.25,122.23,8.18101878]
[1766585547722,0.67,122.25,122.23,8.85101878]
[1766585547924,3.51105832,122.26,122.23,8.85101878]
[1766585550955,0.67,122.26,122.23,8.85101878]
[1766585552254,3.51105832,122.26,122.23,8.85101878]
[1766585556040,3.51105832,122.26,122.23,29.30426266]
[1766585558357,10.43767296,122.27,122.24,0.68]
[1766585559360,11.12767296,122.27,122.24,0.68]
[1766585560367,11.12767296,122.27,122.25,8.1799591]
[1766585560755,14.94,122.28,122.25,8.8599591]
[1766585561365,17.78105832,122.28,122.25,8.8599591]
[1766585562765,17.99105832,122.28,122.25,8.8599591]
[1766585563071,2.84105832,122.27,122.25,8.8599591]
[1766585564473,17.99105832,122.28,122.25,8.8599591]
[1766585566855,0.21,122.26,122.24,8.18033301]
[1766585574066,2.03028544,122.26,122.24,8.18033301]
[1766585578877,2.03028544,122.26,122.23,0.68]
[1766585581576,2.03028544,122.26,122.23,8.86076762]
[1766585582882,2.03028544,122.26,122.23,8.18076762]
[1766585583083,2.03028544,122.26,122.24,0.68]
[1766585586889,2.03028544,122.27,122.24,8.86059556]
[1766585589188,0.21,122.26,122.24,8.18059556]
[1766585589372,1.82028544,122.27,122.24,8.18059556]
[1766585589575,1.82028544,122.26,122.24,8.88059556]
[1766585590673,0.21,122.27,122.24,8.88059556]
[1766585590873,1.82028544,122.26,122.24,8.88059556]
[1766585595989,0.21,122.27,122.24,8.88059556]
[1766585596196,2.03028544,122.27,122.24,8.88059556]
[1766585596390,0.21,122.27,122.24,8.88059556]
[1766585596595,16.97028544,122.28,122.25,0.7]
[1766585597804,1.82028544,122.27,122.25,0.7]
[1766585598791,2.03028544,122.27,122.25,0.7]
[1766585600614,14.94,122.27,122.25,8.87981696]
[1766585602118,14.94,122.27,122.26,0.7]
[1766585602710,14.94,122.27,122.26,8.87929003]
[1766585607323,14.94,122.27,122.26,0.7]
[1766585607520,16.97028544,122.27,122.24,0.7]
[1766585608713,16.97028544,122.27,122.24,8.88052368]
[1766585610018,16.97028544,122.27,122.25,0.7]
[1766585610610,15.15,122.27,122.25,0.7]
[1766585612325,15.15,122.27,122.25,8.87980356]
[1766585616225,14.94,122.27,122.25,8.87980356]
[1766585617132,14.94,122.27,122.23,28.634071]
[1766585617309,15.15,122.27,122.24,0.71]
[1766585617511,16.97028544,122.27,122.24,0.71]
[1766585619041,15.15,122.27,122.25,8.8899591]
[1766585619222,14.94,122.27,122.25,8.8899591]
[1766585620733,12.4679584,122.28,122.25,8.8899591]
[1766585620920,14.94,122.27,122.25,8.8899591]
[1766585624710,12.4679584,122.28,122.25,0.71]
[1766585624912,14.94,122.27,122.25,0.71]
[1766585625609,14.94,122.3,122.26,0.71]
[1766585625820,1.82028544,122.32,122.27,0.71]
[1766585626226,1.82028544,122.32,122.28,0.71]
[1766585626812,1.82028544,122.32,122.29,0.71]
[1766585627249,1.82028544,122.32,122.28,8.1773011]
[1766585627535,1.82028544,122.31,122.28,8.8873011]
[1766585627838,2.03028544,122.31,122.28,8.1773011]
[1766585628135,2.03028544,122.31,122.29,0.71]
[1766585628328,2.03028544,122.31,122.28,8.8873011]
[1766585631341,1.82028544,122.3,122.28,8.8873011]
[1766585631550,1.82028544,122.3,122.26,15.62]
[1766585631551,1.82028544,122.29,122.26,15.62]
[1766585631722,2.03028544,122.29,122.26,23.79898918]
[1766585632423,1.82028544,122.29,122.26,8.17898918]
[1766585632627,1.82028544,122.27,122.25,0.68]
[1766585632831,1.82028544,122.27,122.23,20.45242461]
[1766585632832,2.03028544,122.27,122.24,0.68]
[1766585633315,2.03028544,122.27,122.24,8.86030654]
[1766585633946,3.05423056,122.27,122.24,8.86030654]
[1766585636531,2.84423056,122.26,122.24,8.86030654]
[1766585637722,3.05423056,122.26,122.24,8.86030654]
[1766585638323,2.84423056,122.26,122.24,8.86030654]
[1766585638953,3.05423056,122.26,122.24,8.86030654]
[1766585639742,3.05423056,122.26,122.24,0.68]
[1766585640645,2.84423056,122.26,122.24,0.68]
[1766585644155,0.21,122.27,122.24,0.68]
[1766585644449,2.84423056,122.26,122.24,0.68]
[1766585644652,0.21,122.27,122.24,0.68]
[1766585644955,2.84423056,122.26,122.24,0.68]
[1766585646462,0.21,122.27,122.24,0.68]
[1766585646649,2.84423056,122.26,122.24,0.68]
[1766585649057,3.05423056,122.26,122.23,8.18116219]
[1766585649249,2.84423056,122.25,122.23,8.85116219]
[1766585649630,2.84423056,122.25,122.23,8.18116219]
[1766585649830,2.84423056,122.25,122.23,8.85116219]
[1766585650434,10.64767296,122.26,122.23,8.85116219]
[1766585650756,13.28190352,122.26,122.24,0.67]
[1766585651255,10.43767296,122.26,122.24,0.67]
[1766585651441,13.28190352,122.26,122.24,0.67]
[1766585654055,10.43767296,122.26,122.24,0.67]
[1766585654354,13.28190352,122.26,122.24,0.67]
[1766585655348,13.28190352,122.26,122.24,8.85058483]
[1766585655547,2.84423056,122.28,122.24,8.18058483]
[1766585655753,10.43767296,122.28,122.25,0.67]
[1766585656134,10.43767296,122.28,122.25,8.17967396]
[1766585656361,10.43767296,122.28,122.26,0.67]
[1766585660962,13.28190352,122.28,122.26,0.67]
[1766585675142,2.84423056,122.27,122.26,0.67]
[1766585675342,13.28190352,122.28,122.26,0.67]
[1766585678769,2.84423056,122.27,122.24,23.12037138]
[1766585678975,2.84423056,122.27,122.25,0.7]
[1766585683574,2.84423056,122.26,122.24,23.12037138]
[1766585683765,2.84423056,122.27,122.24,23.12037138]
[1766585684371,2.84423056,122.27,122.24,8.18037138]
[1766585684575,3.51423056,122.27,122.24,8.18037138]
[1766585685552,13.95190352,122.28,122.25,8.17986211]
[1766585685764,13.95190352,122.28,122.25,8.88986211]
[1766585685964,10.43767296,122.28,122.26,0.71]
[1766585686178,13.28190352,122.28,122.26,0.71]
[1766585687171,13.28190352,122.28,122.25,8.17986211]
[1766585687376,13.95190352,122.28,122.25,8.88986211]
[1766585693385,13.95190352,122.28,122.26,0.71]
[1766585693597,102.6,122.29,122.26,0.71]
[1766585693771,105.44423056,122.32,122.27,0.71]
[1766585693969,104.4187951,122.32,122.27,0.71]
[1766585694475,1.8187951,122.31,122.27,0.71]
[1766585695076,1.8187951,122.31,122.27,8.88811782]
[1766585695267,1.8187951,122.31,122.27,8.17811782]
[1766585695469,1.8187951,122.31,122.28,0.71]
[1766585695690,2.4887951,122.31,122.28,0.71]
[1766585696867,2.4887951,122.31,122.28,8.88790978]
[1766585698690,2.4887951,122.29,122.26,0.71]
[1766585698996,2.4887951,122.28,122.26,0.71]
[1766585700369,2.4887951,122.28,122.26,8.88901792]
[1766585701893,0.67,122.27,122.24,29.34128557]
[1766585702084,0.67,122.27,122.25,0.71]
[1766585702274,1.8187951,122.28,122.25,0.71]
[1766585704104,12.92646806,122.29,122.26,8.17929003]
[1766585704398,10.43767296,122.29,122.27,0.71]
[1766585704585,17.4287951,122.31,122.27,0.71]
[1766585705191,16.7587951,122.31,122.26,30.44631022]
[1766585705378,1.8187951,122.27,122.25,8.17967937]
[1766585705581,2.4887951,122.26,122.22,15.65]
[1766585705783,1.8187951,122.25,122.22,15.65]
[1766585706094,1.8187951,122.25,122.22,0.71]
[1766585706399,2.4887951,122.26,122.23,8.89123474]
[1766585711282,0.67,122.26,122.23,0.71]
[1766585711483,2.4887951,122.26,122.23,8.89114351]
[1766585711886,17.4787951,122.28,122.24,0.69]
[1766585712405,1.8187951,122.27,122.24,0.69]
[1766585712579,2.5387951,122.27,122.24,8.87013915]
[1766585713705,0.72,122.27,122.24,8.87013915]
[1766585715403,2.5387951,122.27,122.24,8.87013915]
[1766585716304,2.5387951,122.27,122.24,0.69]
[1766585717304,14.94,122.28,122.22,1.8187951]
[1766585717305,11.15767296,122.25,122.22,0.69]
[1766585717490,10.43767296,122.25,122.22,0.69]
[1766585718299,12.97646806,122.26,122.22,0.69]
[1766585718501,27.91646806,122.26,122.22,0.69]
[1766585718903,12.97646806,122.26,122.22,0.69]
[1766585719088,27.91646806,122.26,122.22,0.69]
[1766585719410,27.91646806,122.26,122.23,0.69]
[1766585719595,12.97646806,122.26,122.23,0.69]
[1766585719797,27.91646806,122.26,122.23,0.69]
[1766585720310,0.72,122.25,122.22,8.87159945]
[1766585721304,0.72,122.25,122.22,0.69]
[1766585721885,27.91646806,122.26,122.22,0.69]
[1766585723305,27.91646806,122.26,122.23,0.69]
[1766585726194,0.72,122.25,122.23,0.69]
[1766585726915,117.54,122.3,122.24,0.69]
[1766585727101,10.43767296,122.26,122.24,0.69]
[1766585728516,27.19646806,122.26,122.23,0.69]
[1766585728815,2.5387951,122.25,122.22,8.87175512]
[1766585730998,0.72,122.25,122.22,8.87175512]
[1766585731199,0.72,122.25,122.22,0.69]
[1766585733922,27.91646806,122.26,122.23,0.69]
[1766585734619,11.15767296,122.26,122.23,0.69]
[1766585734819,25.37767296,122.26,122.23,0.69]
[1766585736127,25.37767296,122.26,122.24,8.18062827]
[1766585737728,25.37767296,122.26,122.23,8.86129755]
[1766585737927,25.37767296,122.26,122.23,8.18129755]